[Event "41st Amateur D7"]
[Site "ChessGUI4"]
[Date "2013.07.09"]
[Round "24.3"]
[White "MadChess 1.2"]
[Black "Tigran 2.3 64-bit"]
[Result "1-0"]
[BlackElo "2289"]
[ECO "A25"]
[EventDate "2013.??.??"]
[TimeControl "40/1500:40/1500:40/1500"]
[WhiteElo "2200"]

{ i5 Quad } 1.c4 { [%eval 0,1] [%emt 0:00:00] } 1...e5
{ [%eval 0,1] [%emt 0:00:00] } 2.g3 { [%eval 0,1] [%emt 0:00:00] } 2...Nc6
{ [%eval 0,1] [%emt 0:00:00] } 3.Bg2 { [%eval 0,1] [%emt 0:00:00] } 3...g6
{ [%eval 0,1] [%emt 0:00:00] } 4.Nc3 { [%eval 0,1] [%emt 0:00:00] } 4...Bg7
{ [%eval 0,1] [%emt 0:00:00] } 5.Rb1 { [%eval 0,1] [%emt 0: 00:00] } 5...f5
{ [%eval 0,1] [%emt 0:00:00] } 6.b4 { [%eval 0,1] [%emt 0:00:00] } 6...Nf6
{ [%eval 0,1] [%emt 0:00:00] } 7.b5 { [%eval 0,1] [%emt 0:00:00] } 7...Ne7
{ [%eval 0, 1] [%emt 0:00:00] } 8.Qb3 { [%eval 0,1] [%emt 0:00:00] } 8...d6
{ [%eval 0,1] [%emt 0: 00:00] } 9.Ba3 { [%eval -7,10] [%emt 0:00:35] }
9...O-O { [%eval -11,12] [%emt 0:00: 39] (O-O) } 10.d3
{ [%eval 11,11] [%emt 0:01:07] (Nf3) } 10...f4
{ [%eval -10,12] [%emt 0:00:34] (h6) } 11.c5+
{ [%eval 19,10] [%emt 0:00:16] (Nf3) } 11...Kh8
{ [%eval -21,12] [%emt 0:00:33] (Rf7) } 12.Nf3
{ [%eval 25,10] [%emt 0:00:38] (Nf3) } 12...Bh6
{ [%eval -17,12] [%emt 0:00:43] (Bh6) } 13.O-O
{ [%eval 12,10] [%emt 0:00:26] } 13...fxg3
{ [%eval -44,13] [%emt 0:00:43] (fxg3) } 14.hxg3
{ [%eval 46,10] [%emt 0:00: 27] (hxg3) } 14...Bg4
{ [%eval -60,13] [%emt 0:00:43] (Bg4) } 15.cxd6
{ [%eval 43,10] [%emt 0:00:22] (cxd6) } 15...cxd6
{ [%eval -73,13] [%emt 0:00:44] (cxd6) } 16.Nh2
{ [%eval 59,12] [%emt 0:01:53] (Qb4) } 16...Bc8
{ [%eval -52,12] [%emt 0:00:41] (Bc8) } 17.Qb4
{ [%eval 58,12] [%emt 0:00:33] (Qb4) } 17...Ne8
{ [%eval -61,13] [%emt 0:00:44] (Ne8) } 18.Nf3
{ [%eval 72,11] [%emt 0:00:30] (Qh4) } 18...Bg7
{ [%eval -49,12] [%emt 0:00:38] (Bg7) } 19.Nd2
{ [%eval 88,11] [%emt 0:00:39] (Rfc1) } 19...a6
{ [%eval -50, 12] [%emt 0:00:42] (Nf5) } 20.Nc4
{ [%eval 111,11] [%emt 0:00:33] (b6) } 20...a5
{ [%eval -60,13] [%emt 0:00:45] (a5) } 21.Qa4
{ [%eval 108,11] [%emt 0:00:32] (Qa4) } 21...Nf5
{ [%eval -65,13] [%emt 0:00:45] (Nf5) } 22.e3
{ [%eval 100,10] [%emt 0:00:35] (e3) } 22...Rf7
{ [%eval -70,12] [%emt 0:00:45] (h5) } 23.b6
{ [%eval 124,9] [%emt 0:00:21] (b6) } 23...Be6
{ [%eval -64,12] [%emt 0:00:39] (Bd7) } 24.Nxa5
{ [%eval 99,10] [%emt 0:01:05] (Nxa5) } 24...d5
{ [%eval -65,11] [%emt 0:00:46] (Nf6) } 25.Rb5
{ [%eval 99,10] [%emt 0:00:47] (Qb4) } 25...d4
{ [%eval -77,12] [%emt 0:00:46] (Ned6) } 26.Bxb7
{ [%eval 118,11] [%emt 0:00:31] (Bxb7) } 26...Rxb7
{ [%eval -121,12] [%emt 0:00:47] (Rxb7) } 27.Nxb7
{ [%eval 134,12] [%emt 0:00:33] (Nxb7) } 27...Qb8
{ [%eval -163,14] [%emt 0:00:40] (Qc8) } 28.Ra5
{ [%eval 198,13] [%emt 0:00:37] (Ra5) } 28...Rxa5
{ [%eval -224,14] [%emt 0:00:48] (Rxa5) } 29.Nxa5
{ [%eval 201,13] [%emt 0:00:37] (Nxa5) } 29...dxc3
{ [%eval -229,13] [%emt 0:00:48] (dxc3) } 30.Rc1
{ [%eval 151,12] [%emt 0:00:58] (b7) } 30...Nxg3
{ [%eval -113,13] [%emt 0:00:49] (e4) } 31.Rc2
{ [%eval 114,12] [%emt 0:00:50] (Qc6) } 31...e4
{ [%eval -149,12] [%emt 0:00: 49] (Qxb6) } 32.d4
{ [%eval 118,12] [%emt 0:00:34] (dxe4) } 32...Nf5
{ [%eval -179,12] [%emt 0:00:50] (Nf5) } 33.Rxc3
{ [%eval 129,12] [%emt 0:00:36] (Rxc3) } 33...Nfd6
{ [%eval -207,12] [%emt 0:00:49] (Nh4) } 34.b7
{ [%eval 213,12] [%emt 0:01:56] (b7) } 34...Bh6
{ [%eval -274,12] [%emt 0:00:44] (Kg8) } 35.Rc2
{ [%eval 275,11] [%emt 0:00:42] (Bxd6) } 35...Nxb7
{ [%eval -355,12] [%emt 0:00:42] (Bg7) } 36.Nxb7
{ [%eval 291,13] [%emt 0:00:54] (Nxb7) } 36...Bd5
{ [%eval -367,14] [%emt 0:00:56] (Bd5) } 37.Nc5
{ [%eval 309,13] [%emt 0:00:37] (Na5) } 37...Nf6
{ [%eval -369,13] [%emt 0:00:57] (Nf6) } 38.Na6
{ [%eval 304,13] [%emt 0:00:55] (Nd7) } 38...Qb1+
{ [%eval -355,13] [%emt 0:00:48] (Qd8) } 39.Kg2
{ [%eval 315,11] [%emt 0:00:29] (Rc1) } 39...Be6
{ [%eval -330,13] [%emt 0:00:59] (Bg8) } 40.Bc1
{ [%eval 271,10] [%emt 0:00:26] (Bc1) } 40...Bg7
{ [%eval -343,14] [%emt 0:01:19] (Bg7) } 41.Nc7
{ [%eval 286,12] [%emt 0:00:42] (Nc7) } 41...Bg4
{ [%eval -344,14] [%emt 0:00:34] (Bf7) } 42.Qa8+
{ [%eval 317,13] [%emt 0:00:40] (Nd5) } 42...Ng8
{ [%eval -338,14] [%emt 0:00:31] (Ng8) } 43.Rc3
{ [%eval 321,13] [%emt 0:00:49] (Rc3) } 43...Qb4
{ [%eval -335,13] [%emt 0:00: 34] (Bf3) } 44.Nd5
{ [%eval 284,12] [%emt 0:00:34] (Rc5) } 44...Qb5
{ [%eval -236,13] [%emt 0:00:34] (Qb5) } 45.Rc2
{ [%eval 228,12] [%emt 0:00:33] (Ba3) } 45...Bf3+
{ [%eval -235,14] [%emt 0:00:28] (Bf3) } 46.Kg1
{ [%eval 191,14] [%emt 0:00:38] (Kg1) } 46...Qd7
{ [%eval -155,15] [%emt 0:00:27] (Qd7) } 47.Kf1
{ [%eval 269,13] [%emt 0:01:56] (Rc8) } 47...Qb5+
{ [%eval -118,16] [%emt 0:00:35] (Qb5) } 48.Ke1
{ [%eval 265,16] [%emt 0:00:49] (Ke1) } 48...Qd3
{ [%eval -144,16] [%emt 0:00:35] (Bg2) } 49.Rd2
{ [%eval 145,16] [%emt 0:00:34] (Rd2) } 49...Qc4
{ [%eval -139,16] [%emt 0:00: 35] (Qc4) } 50.Bb2
{ [%eval 150,16] [%emt 0:00:33] (Bb2) } 50...Bg2
{ [%eval -130,15] [%emt 0:00:35] (Bg2) } 51.Rd1
{ [%eval 169,15] [%emt 0:00:22] (Rd1) } 51...Qb5
{ [%eval -153,15] [%emt 0:00:35] (Qf1) } 52.Ba1
{ [%eval 131,14] [%emt 0:00:51] (Nf4) } 52...Bf3
{ [%eval -133,14] [%emt 0:00:33] (Bf3) } 53.Nc3
{ [%eval 125,14] [%emt 0:00:20] (Nc3) } 53...Qg5
{ [%eval -119,15] [%emt 0:00:34] (Qg5) } 54.Qa6
{ [%eval 125,14] [%emt 0:00:29] (Qa6) } 54...Bxd1
{ [%eval -116,15] [%emt 0:00:35] (Bxd1) } 55.Nxd1
{ [%eval 143,13] [%emt 0:00:17] (Nxd1) } 55...h5
{ [%eval -113,14] [%emt 0:00:29] (h5) } 56.Bb2
{ [%eval 124,12] [%emt 0:00:24] (Nc3) } 56...h4
{ [%eval -110,13] [%emt 0:00:36] (Nf6) } 57.Nc3
{ [%eval 122,13] [%emt 0:01:04] (Nc3) } 57...Qg4
{ [%eval -105,14] [%emt 0:00:33] (Qg4) } 58.Qe2
{ [%eval 106,12] [%emt 0:00: 22] (Ba3) } 58...Qg2
{ [%eval -112,14] [%emt 0:00:37] (Qf5) } 59.a4
{ [%eval 174,13] [%emt 0:00:50] (Qf1) } 59...h3
{ [%eval -91,15] [%emt 0:00:37] (h3) } 60.Qf1
{ [%eval 169,13] [%emt 0:00:18] (Qf1) } 60...Nf6
{ [%eval -105,14] [%emt 0:00:37] (Qf3) } 61.a5
{ [%eval 140,14] [%emt 0:00:37] (a5) } 61...Qf3
{ [%eval -107,16] [%emt 0:00:35] (Qf3) } 62.a6
{ [%eval 159,15] [%emt 0:00:35] (a6) } 62...h2
{ [%eval -104,16] [%emt 0:00:35] (h2) } 63.a7
{ [%eval 157,15] [%emt 0:00:18] (a7) } 63...h1=Q
{ [%eval -110,15] [%emt 0:00:38] (h1=Q) } 64.a8=Q+
{ [%eval 166,15] [%emt 0:00:25] (a8=Q) } 64...Kh7
{ [%eval -111,15] [%emt 0:00:38] (Kh7) } 65.Qa6
{ [%eval 159,14] [%emt 0:00:20] (Qa6) } 65...Qh2
{ [%eval -114,13] [%emt 0:00:38] (Qh4) } 66.Qae2
{ [%eval 162,12] [%emt 0:00: 33] (Qae2) } 66...Qxe2+
{ [%eval -130,13] [%emt 0:00:38] (Qh4) } 67.Qxe2
{ [%eval 185, 12] [%emt 0:00:32] (Qxe2) } 67...Bf8
{ [%eval -127,13] [%emt 0:00:39] (Qh5) } 68.Qc4
{ [%eval 183,12] [%emt 0:00:32] (Qc4) } 68...Qg1+
{ [%eval -128,14] [%emt 0:00:39] (Qh1) } 69.Ke2
{ [%eval 189,14] [%emt 0:00:24] (Ke2) } 69...Qg4+
{ [%eval -128,13] [%emt 0: 00:39] (Qg4) } 70.Kd2
{ [%eval 185,15] [%emt 0:01:48] (Kf1) } 70...Qf5
{ [%eval -142, 14] [%emt 0:00:34] (Qf3) } 71.Qf7+
{ [%eval 187,14] [%emt 0:00:42] (Qf7) } 71...Bg7
{ [%eval -146,15] [%emt 0:00:37] (Bg7) } 72.Ke1
{ [%eval 202,13] [%emt 0:00:13] (Nd1) } 72...Qh3
{ [%eval -182,14] [%emt 0:00:41] (Qf3) } 73.d5
{ [%eval 237,15] [%emt 0:00:36] (d5) } 73...Qh1+
{ [%eval -227,15] [%emt 0:00:33] (Qh1) } 74.Kd2
{ [%eval 246, 16] [%emt 0:00:26] (Kd2) } 74...Qf1
{ [%eval -238,16] [%emt 0:00:43] (Qf1) } 75.Ne2
{ [%eval 234,16] [%emt 0:00:32] (Ne2) } 75...Nh5
{ [%eval -236,15] [%emt 0:00:44] (Qb1) } 76.Be5
{ [%eval 367,15] [%emt 0:00:53] (Bd4) } 76...Kh6
{ [%eval -254,15] [%emt 0:00: 45] (Kh6) } 77.Bxg7+
{ [%eval 348,16] [%emt 0:00:46] (Bxg7) } 77...Nxg7
{ [%eval -269, 15] [%emt 0:00:46] (Nxg7) } 78.Qf4+
{ [%eval 318,16] [%emt 0:01:34] (d6) } 78...Kh7
{ [%eval -234,15] [%emt 0:00:47] (Kh7) } 79.Qxe4
{ [%eval 333,15] [%emt 0:00:59] (Qxe4) } 79...Qxf2
{ [%eval -224,14] [%emt 0:00:49] (Qxf2) } 80.Qe7
{ [%eval 333,14] [%emt 0:00:12] (Qe7) } 80...Kg8
{ [%eval -225,14] [%emt 0:00:54] (Kg8) } 81.e4
{ [%eval 334,15] [%emt 0:00:52] (d6) } 81...Qh2
{ [%eval -204,13] [%emt 0:00:32] (Qf7) } 82.Qf6
{ [%eval 310,16] [%emt 0:02:55] (Qg5) } 82...Qh6+
{ [%eval -209,13] [%emt 0:00: 34] (Qh6) } 83.Kd3
{ [%eval 331,15] [%emt 0:01:03] (Qf4) } 83...Qh3+
{ [%eval -197,13] [%emt 0:00:34] (Qh3) } 84.Kd4
{ [%eval 309,14] [%emt 0:00:40] (Kc4) } 84...Qh6
{ [%eval -202,13] [%emt 0:00:34] (Qg2) } 85.Nc3
{ [%eval 379,15] [%emt 0:01:26] (Kc4) } 85...Qh5
{ [%eval -226,13] [%emt 0:00:34] (Ne8) } 86.d6
{ [%eval 377,16] [%emt 0:02:53] (Kd3) } 86...Qg4
{ [%eval -240,13] [%emt 0:00:35] (Qg4) } 87.Kc4
{ [%eval 375, 14] [%emt 0:01:46] (Qd8) } 87...Qc8+
{ [%eval -264,13] [%emt 0:00:34] (Qc8) } 88.Kd3
{ [%eval 397,13] [%emt 0:00:27] (Kd3) } 88...Kh7
{ [%eval -281,14] [%emt 0:00:34] (Qh3) } 89.Qe7
{ [%eval 411,13] [%emt 0:00:32] (Qe7) } 89...Qc5
{ [%eval -305,14] [%emt 0:00: 34] (Qa6) } 90.Nd5
{ [%eval 386,12] [%emt 0:00:19] (e5) } 90...Qb5+
{ [%eval -278,12] [%emt 0:00:34] (g5) } 91.Ke3
{ [%eval 426,16] [%emt 0:00:40] (Ke3) } 91...Qb3+
{ [%eval -234,12] [%emt 0:00:34] (Qb3) } 92.Kf4
{ [%eval 451,15] [%emt 0:00:14] (Kd4) } 92...g5+
{ [%eval -186,13] [%emt 0:00:35] (Qc2) } 93.Kg4
{ [%eval 399,17] [%emt 0:03:07] (Kg4) } 93...Qd1+
{ [%eval -186,12] [%emt 0:00:30] (Qd1) } 94.Kg3
{ [%eval 293,16] [%emt 0:00:19] (Kg3) } 94...Qd3+
{ [%eval -186,13] [%emt 0:00:35] (Qg1) } 95.Kf2
{ [%eval 352,17] [%emt 0:00:22] (Kf2) } 95...Qd2+
{ [%eval -195,12] [%emt 0: 00:33] (Qd2) } 96.Kf3
{ [%eval 291,16] [%emt 0:00:10] (Kf3) } 96...Qd1+
{ [%eval -196, 12] [%emt 0:00:35] (Qd3) } 97.Ke3
{ [%eval 388,14] [%emt 0:00:20] (Ke3) } 97...Qg1+
{ [%eval -201,12] [%emt 0:00:36] (Qc1) } 98.Ke2
{ [%eval 388,15] [%emt 0:00:22] (Kd3) } 98...Qg2+
{ [%eval -201,13] [%emt 0:00:28] (Qg2) } 99.Kd3
{ [%eval 388,16] [%emt 0:00:29] (Kd1) } 99...Qf1+
{ [%eval -201,12] [%emt 0:00:36] (Qf1) } 100.Kd4
{ [%eval 388,15] [%emt 0:00:12] (Kc2) } 100...Qf2+
{ [%eval -202,12] [%emt 0:00:37] (Qd1) } 101.Kc4
{ [%eval 388,16] [%emt 0:00:15] (Kc4) } 101...Qe2+
{ [%eval -201,12] [%emt 0: 00:36] (Qf1) } 102.Kb3
{ [%eval 388,16] [%emt 0:00:19] (Kb3) } 102...Qd1+
{ [%eval -201, 12] [%emt 0:00:37] (Qd1) } 103.Kb4
{ [%eval 372,16] [%emt 0:00:15] (Kc3) } 103...Qd4+
{ [%eval -235,12] [%emt 0:00:37] (Qd4) } 104.Kb5
{ [%eval 373,15] [%emt 0:00:08] (Kb5) } 104...Qd3+
{ [%eval -242,12] [%emt 0:00:37] (Qd3) } 105.Kb6
{ [%eval 395,15] [%emt 0:00:27] (Kc6) } 105...Qb3+
{ [%eval -243,12] [%emt 0:00:38] (Qb3) } 106.Kc7
{ [%eval 395,15] [%emt 0:00:16] (Kc6) } 106...Qc4+
{ [%eval -258,13] [%emt 0:00:37] (Qc4) } 107.Kd8
{ [%eval 369,14] [%emt 0:00:11] (Kb7) } 107...Qb3
{ [%eval -301,13] [%emt 0: 00:38] (Qb3) } 108.Kc8
{ [%eval 498,13] [%emt 0:00:08] (Nc7) } 108...Qc4+
{ [%eval -301, 14] [%emt 0:00:38] (Qc4) } 109.Nc7
{ [%eval 588,13] [%emt 0:00:07] (Nc7) } 109...Qg8+
{ [%eval -301,13] [%emt 0:00:38] (Qg8) } 110.Kd7
{ [%eval 353,12] [%emt 0:00:07] (Kd7) } 110...Qc4
{ [%eval -323,14] [%emt 0:00:39] (Qc4) } 111.Kd8
{ [%eval 396,14] [%emt 0:00:18] (Kd8) } 111...Qb3
{ [%eval -339,14] [%emt 0:00:39] (Kg6) } 112.Qxg5
{ [%eval 578,13] [%emt 0:00:17] (Qxg5) } 112...Qf3
{ [%eval -410,13] [%emt 0:00:40] (Qg8) } 113.Kc8
{ [%eval 992,15] [%emt 0:00:32] (Qh4) } 113...Qf8+
{ [%eval -1163,14] [%emt 0:00:40] (Qf8) } 114.Qd8
{ [%eval 1157,15] [%emt 0:00:12] (Qd8) } 114...Qf2
{ [%eval -1251,15] [%emt 0:00:41] (Qxd8) } 115.d7
{ [%eval 1300,13] [%emt 0:00:16] (Qe7) } 115...Qg3
{ [%eval -1317,15] [%emt 0:00:41] (Qh2) } 116.Qe7
{ [%eval 1324,14] [%emt 0: 00:13] (Qe7) } 116...Qh3
{ [%eval -1367,15] [%emt 0:00:42] (Qh3) } 1-0

[Event "41st Amateur D7"]
[Site "ChessGUI4"]
[Date "2013.07.09"]
[Round "24.4"]
[White "ProChess 1.02AD"]
[Black "Butcher 1.64 64-bit"]
[Result "0-1"]
[BlackElo "2355"]
[ECO "B30"]
[EventDate "2013.??.??"]
[TimeControl "40/1500:40/1500:40/1500"]
[WhiteElo "2244"]

{ i5 Quad } 1.e4 { [%eval 0,1] [%emt 0:00:00] } 1...c5
{ [%eval 0,1] [%emt 0:00:00] } 2.Nf3 { [%eval 0,1] [%emt 0:00:00] } 2...Nc6
{ [%eval 0,1] [%emt 0:00:00] } 3.Nc3 { [%eval 0,1] [%emt 0:00:00] } 3...e5
{ [%eval 0,1] [%emt 0:00:00] } 4.Bc4 { [%eval 0,1] [%emt 0:00:00] } 4...Be7
{ [%eval 0,1] [%emt 0:00:00] } 5.d3 { [%eval 0,1] [%emt 0:00: 00] } 5...d6
{ [%eval 0,1] [%emt 0:00:00] } 6.O-O { [%eval 0,1] [%emt 0:00:00] } 6...Nf6
{ [%eval 0,1] [%emt 0:00:00] } 7.Ng5 { [%eval 0,1] [%emt 0:00:00] } 7...O-O
{ [%eval 0, 1] [%emt 0:00:00] } 8.f4 { [%eval 0,1] [%emt 0:00:00] } 8...Bg4
{ [%eval 0,1] [%emt 0: 00:00] } 9.Nf3 { [%eval -11,12] [%emt 0:00:58] }
9...exf4 { [%eval -46,11] [%emt 0:01: 06] (Nd4) } 10.Bxf4
{ [%eval 5,13] [%emt 0:02:08] (Bxf4) } 10...Na5
{ [%eval -41,10] [%emt 0:01:00] (Nd4) } 11.h3
{ [%eval 20,11] [%emt 0:00:41] (Qc1) } 11...Nxc4
{ [%eval -34,11] [%emt 0:00:59] (Bh5) } 12.hxg4
{ [%eval 28,14] [%emt 0:01:03] (dxc4) } 12...Nb6
{ [%eval -28,13] [%emt 0:00:58] (Nb6) } 13.g5
{ [%eval 25,13] [%emt 0:00:56] (g5) } 13...Ne8
{ [%eval -26,11] [%emt 0:01:03] (Ng4) } 14.a4
{ [%eval 27,12] [%emt 0:01:19] (a4) } 14...a5
{ [%eval -9,12] [%emt 0:00:55] (Nc7) } 15.d4
{ [%eval 42, 12] [%emt 0:00:59] (Qe1) } 15...Qc8
{ [%eval -12,11] [%emt 0:01:02] (f6) } 16.Nh4
{ [%eval 50,11] [%emt 0:00:37] (dxc5) } 16...Qd8
{ [%eval 2,12] [%emt 0:01:01] (g6) } 17.dxc5
{ [%eval 55,13] [%emt 0:00:41] (dxc5) } 17...Bxg5
{ [%eval -1,12] [%emt 0:01:00] (Bxg5) } 18.Bxg5
{ [%eval 77,13] [%emt 0:00:27] (Bxg5) } 18...Qxg5
{ [%eval 17,13] [%emt 0:00:59] (Qxg5) } 19.cxb6
{ [%eval 76,13] [%emt 0:00:34] (cxb6) } 19...Qxh4
{ [%eval 14,13] [%emt 0:00:58] (Qxh4) } 20.Qd4
{ [%eval 82,13] [%emt 0:00:59] (Qd3) } 20...Rc8
{ [%eval 10,12] [%emt 0:00:56] (Qd8) } 21.Rf5
{ [%eval 70,12] [%emt 0: 01:06] (Rad1) } 21...Rc6
{ [%eval 18,13] [%emt 0:01:24] (Nf6) } 22.Rxa5
{ [%eval 55,11] [%emt 0:00:20] (Raf1) } 22...Nf6
{ [%eval 26,12] [%emt 0:00:45] (Nf6) } 23.Qf2
{ [%eval 42,10] [%emt 0:00:31] (Qf2) } 23...Qxf2+
{ [%eval 26,12] [%emt 0:00:44] (Qxf2) } 24.Kxf2
{ [%eval 42,13] [%emt 0:00:22] (Kxf2) } 24...Re8
{ [%eval 21,12] [%emt 0:00: 43] (Re8) } 25.Kf3
{ [%eval 58,13] [%emt 0:00:27] (Kf3) } 25...Rxb6
{ [%eval 16,13] [%emt 0:00:43] (Nd7) } 26.Rb5
{ [%eval 57,14] [%emt 0:00:23] (Rb5) } 26...Rxb5
{ [%eval 16,14] [%emt 0:00:42] (Nd7) } 27.axb5
{ [%eval 55,14] [%emt 0:00:24] (axb5) } 27...h5
{ [%eval 25,13] [%emt 0:00:42] (Kf8) } 28.Ra7
{ [%eval 67,13] [%emt 0: 00:27] (Ra7) } 28...Re7
{ [%eval 36,14] [%emt 0:00:41] (Rb8) } 29.Ra8+
{ [%eval 72,14] [%emt 0:00:16] (Nd5) } 29...Kh7
{ [%eval 47,14] [%emt 0:00:40] (Kh7) } 30.Rd8
{ [%eval 62,15] [%emt 0:02:38] (Nd5) } 30...Rd7
{ [%eval 19,13] [%emt 0:00:39] (Re6) } 31.Rxd7
{ [%eval 73,14] [%emt 0:00:13] (Rb8) } 31...Nxd7
{ [%eval 20,13] [%emt 0:00: 38] (Nxd7) } 32.Ke3
{ [%eval 76,13] [%emt 0:00:23] (Ke3) } 32...Kg8
{ [%eval 15,13] [%emt 0:00:37] (Kg8) } 33.Nd5
{ [%eval 69,12] [%emt 0:00:15] (Kd4) } 33...Kf8
{ [%eval 6,12] [%emt 0:00:31] (Kf8) } 34.Kd4
{ [%eval 65,12] [%emt 0:00:20] (b3) } 34...Nc5
{ [%eval 7,12] [%emt 0:00:29] (Ke8) } 35.b6
{ [%eval 67,12] [%emt 0:00:09] (Ke3) } 35...Ne6+
{ [%eval 2,12] [%emt 0:00:28] (Ne6) } 36.Kd3
{ [%eval 53,14] [%emt 0: 00:25] (Ke3) } 36...Ke8
{ [%eval 0,13] [%emt 0:00:26] (Ke8) } 37.b3
{ [%eval 50,13] [%emt 0:00:15] (c3) } 37...Kd7
{ [%eval 0,12] [%emt 0:00:24] (Kd7) } 38.b4
{ [%eval 50, 13] [%emt 0:00:23] (Ke3) } 38...h4
{ [%eval -3,13] [%emt 0:00:22] (h4) } 39.c4
{ [%eval 38,13] [%emt 0:00:15] (b5) } 39...Ng5
{ [%eval -18,13] [%emt 0:00:20] (Kc6) } 40.Ke3
{ [%eval 38,13] [%emt 0:00:11] (Nf4) } 40...h3
{ [%eval -37,13] [%emt 0:00:12] (Ne6) } 41.gxh3
{ [%eval 35,16] [%emt 0:00:58] (gxh3) } 41...Nxh3
{ [%eval -40,14] [%emt 0:00:50] (Nxh3) } 42.b5
{ [%eval 25,16] [%emt 0:03:59] (Kd4) } 42...Ng5
{ [%eval -68,15] [%emt 0:00:49] (Ng5) } 43.Nf4
{ [%eval 0,16] [%emt 0:00:39] (Nf4) } 43...Ne6
{ [%eval -69,15] [%emt 0:00:49] (Ne6) } 44.Nd5
{ [%eval 0,16] [%emt 0:00: 58] (Nd5) } 44...Kd8
{ [%eval -87,15] [%emt 0:00:48] (Ng5) } 45.Ke2
{ [%eval 0,17] [%emt 0:00:40] (Kd3) } 45...Nc5
{ [%eval -101,15] [%emt 0:00:48] (Kd7) } 46.Kf3
{ [%eval 0,18] [%emt 0:01:31] (Kf3) } 46...Kd7
{ [%eval -94,15] [%emt 0:01:32] (Kd7) } 47.Kf4
{ [%eval 0,17] [%emt 0:02:44] (Ke3) } 47...Kd8
{ [%eval -111,15] [%emt 0:01:22] (Ke6) } 48.Kf3
{ [%eval 0,17] [%emt 0:00:33] (Ke3) } 48...Nd7
{ [%eval -102,15] [%emt 0:00:48] } 49.Ke3
{ [%eval 0,17] [%emt 0:00:45] (Ke3) } 49...Ne5
{ [%eval -79,15] [%emt 0:00:48] (Nc5) } 50.Kd4
{ [%eval 0,17] [%emt 0:00:59] (Kd4) } 50...Nd7
{ [%eval -110,15] [%emt 0:01:22] (Nd7) } 51.Kd3
{ [%eval 0,16] [%emt 0:00:33] (Ke3) } 51...g5
{ [%eval -105,15] [%emt 0:00:44] (Nc5) } 52.Kd4
{ [%eval 0,16] [%emt 0:00:34] (Kd4) } 52...f6
{ [%eval -81,16] [%emt 0:01:17] (Ke8) } 53.Kc3
{ [%eval -4,15] [%emt 0: 00:25] (Ke3) } 53...Ke8
{ [%eval -142,15] [%emt 0:00:41] (Ke8) } 54.Kd4
{ [%eval -17, 15] [%emt 0:00:36] (Kd3) } 54...Kf7
{ [%eval -127,15] [%emt 0:01:02] (Kf7) } 55.Kd3
{ [%eval -32,15] [%emt 0:00:43] (Ke3) } 55...Ne5+
{ [%eval -158,14] [%emt 0:00:33] (Ke6) } 56.Kd4
{ [%eval -14,16] [%emt 0:01:35] (Kd4) } 56...g4
{ [%eval -101,15] [%emt 0:00: 58] (g4) } 57.Ne3
{ [%eval -12,15] [%emt 0:00:19] (Ke3) } 57...g3
{ [%eval -142,14] [%emt 0:00:32] (g3) } 58.Kd5
{ [%eval -40,16] [%emt 0:00:36] (Kd5) } 58...Ke8
{ [%eval -143,15] [%emt 0:00:31] (Ke8) } 59.Ng2
{ [%eval -43,16] [%emt 0:00:17] (Ng2) } 59...Ke7
{ [%eval -146,16] [%emt 0:00:54] (Kd7) } 60.Nh4
{ [%eval -47,16] [%emt 0:00:18] (Nh4) } 60...Kd7
{ [%eval -158,16] [%emt 0:00:51] (Kd7) } 61.Kd4
{ [%eval -59,16] [%emt 0:00:15] (Kd4) } 61...Ke6
{ [%eval -170,16] [%emt 0:00:48] (Ke6) } 62.Ng2
{ [%eval -80,15] [%emt 0:00:15] (Ng2) } 62...Ng6
{ [%eval -187,15] [%emt 0:00: 26] (Ng6) } 63.Kd3
{ [%eval -101,15] [%emt 0:00:20] (Ke3) } 63...f5
{ [%eval -269,14] [%emt 0:00:24] (f5) } 64.exf5+
{ [%eval -111,16] [%emt 0:00:30] (exf5) } 64...Kxf5
{ [%eval -284,16] [%emt 0:00:25] (Kxf5) } 65.Ke3
{ [%eval -131,16] [%emt 0:00:17] (Kd4) } 65...Kg4
{ [%eval -296,15] [%emt 0:00:22] (Kg4) } 66.Ke4
{ [%eval -167,16] [%emt 0:00:13] (Ke4) } 66...Ne7
{ [%eval -303,15] [%emt 0:00:19] (Nh4) } 67.Ne3+
{ [%eval -193,15] [%emt 0:00:15] (Ne3) } 67...Kh3
{ [%eval -306,15] [%emt 0:00:19] (Kh3) } 68.Kf3
{ [%eval -291,17] [%emt 0:00:17] (Kf3) } 68...Nc8
{ [%eval -322,15] [%emt 0: 00:18] (Nc8) } 69.Ng2
{ [%eval -300,17] [%emt 0:00:26] (Ke4) } 69...Nxb6
{ [%eval -399, 16] [%emt 0:00:32] (Nxb6) } 70.Nf4+
{ [%eval -310,17] [%emt 0:00:10] (Nf4) } 70...Kh2
{ [%eval -411,16] [%emt 0:00:18] (Kh2) } 71.Ke4
{ [%eval -311,16] [%emt 0:00:20] (Ke4) } 71...Nxc4
{ [%eval -464,14] [%emt 0:00:17] (g2) } 72.Kd5
{ [%eval -310,15] [%emt 0:00:09] (Kd5) } 72...Nb2
{ [%eval -443,15] [%emt 0:00:17] (Na3) } 73.Kd4
{ [%eval -330,16] [%emt 0:00:11] (Kxd6) } 73...Kh1
{ [%eval -537,15] [%emt 0:00:17] (Kh1) } 74.Ke4
{ [%eval -368,17] [%emt 0:00:11] (b6) } 74...Na4
{ [%eval -542,14] [%emt 0:00:14] (b6) } 75.Kf3
{ [%eval -361,16] [%emt 0:00:10] (Kf3) } 75...Kh2
{ [%eval -612,14] [%emt 0:00:17] (Kh2) } 76.Ng2
{ [%eval -353,16] [%emt 0:00:08] (Ng2) } 76...Nc3
{ [%eval -670,15] [%emt 0:00:16] (Nc3) } 77.Ne3
{ [%eval -382,17] [%emt 0:00:13] (Ne3) } 77...Kh3
{ [%eval -692,14] [%emt 0:00:16] (Kh3) } 78.b6
{ [%eval -452,16] [%emt 0:00:07] (Ng2) } 78...Na4
{ [%eval -672,15] [%emt 0:00:13] (Na4) } 79.Ng2
{ [%eval -486,16] [%emt 0:00:07] (Ng2) } 79...Nxb6
{ [%eval -710,15] [%emt 0: 00:15] (Nxb6) } 80.Nf4+
{ [%eval -491,15] [%emt 0:00:13] (Ne1) } 80...Kh2
{ [%eval -720,14] [%emt 0:00:13] (Kh2) } 81.Ke4
{ [%eval -548,16] [%emt 0:00:56] (Ng2) } 81...Nc8
{ [%eval -779,15] [%emt 0:01:26] (Nd7) } 82.Nd3
{ [%eval -538,16] [%emt 0:02: 14] (Nd3) } 82...g2
{ [%eval -785,15] [%emt 0:00:48] (g2) } 83.Ne1
{ [%eval -580,16] [%emt 0:01:36] (Ne1) } 83...Ne7
{ [%eval -878,15] [%emt 0:00:46] (Ne7) } 84.Nxg2
{ [%eval -893,17] [%emt 0:06:51] (Kd3) } 84...Kxg2
{ [%eval -849,15] [%emt 0:00:47] (Kxg2) } 0-1